bitfinex-derivatives/quotes_BTCF0:USTF0_20241208
["timestamp","ask_amount","ask_price","bid_price","bid_amount"]
[1733652793778,0.408074,99327.0,99326.0,0.12444715]
[1733652794481,0.3628,99327.0,99326.0,0.12444715]
[1733652795681,0.3628,99327.0,99326.0,0.12444703]
[1733652796477,0.3628,99327.0,99326.0,0.13562048]
[1733652798487,0.408074,99327.0,99326.0,0.13562048]
[1733652799289,0.408074,99327.0,99326.0,0.31634632]
[1733652800187,0.408074,99327.0,99326.0,0.13562048]
[1733652802483,0.408074,99327.0,99326.0,0.1555866]
[1733652802688,0.408074,99327.0,99326.0,0.01447203]
[1733652802990,0.408074,99327.0,99326.0,0.01447221]
[1733652803177,0.55881372,99327.0,99326.0,0.01447221]
[1733652803381,0.4570094,99327.0,99326.0,0.01447221]
[1733652804488,0.45701,99327.0,99326.0,0.01447221]
[1733652806089,0.45701,99327.0,99317.0,0.01130554]
[1733652806090,0.045278,99318.0,99317.0,0.01130554]
[1733652806284,0.3608,99319.0,99317.0,0.01447304]
[1733652806478,0.3608,99319.0,99316.0,0.0197547]
[1733652806479,0.406078,99319.0,99318.0,0.01447305]
[1733652807286,0.045278,99319.0,99318.0,0.01447305]
[1733652807482,0.045278,99319.0,99318.0,0.01547305]
[1733652807483,0.406078,99319.0,99318.0,0.01547305]
[1733652808093,0.406078,99319.0,99318.0,0.001]
[1733652808290,0.406078,99319.0,99318.0,0.01547313]
[1733652808683,0.406078,99319.0,99318.0,0.01647313]
[1733652808879,0.045278,99319.0,99318.0,0.01647313]
[1733652809485,0.406078,99319.0,99318.0,0.002]
[1733652809689,0.406078,99319.0,99318.0,0.01647313]
[1733652816897,0.63600175,99319.0,99318.0,0.01647313]
[1733652817192,0.45501769,99319.0,99318.0,0.01647313]
[1733652817499,0.58976656,99319.0,99318.0,0.01647313]
[1733652818192,0.60106654,99319.0,99318.0,0.01647313]
[1733652818587,0.60071164,99319.0,99318.0,0.01647313]
[1733652819189,0.60088525,99319.0,99318.0,0.01647313]
[1733652819694,0.46632175,99319.0,99318.0,0.01647313]
[1733652822093,0.82712175,99319.0,99318.0,0.01647313]
[1733652822797,0.82712175,99319.0,99313.0,0.0003599]
[1733652823000,0.82712175,99319.0,99311.0,0.00035992]
[1733652823001,0.045281,99312.0,99311.0,0.00035992]
[1733652823299,0.045283,99307.0,99306.0,0.00035992]
[1733652823595,0.045283,99307.0,99288.0,0.00151077]
[1733652823596,0.045283,99306.0,99305.0,0.00044605]
[1733652823799,0.045283,99306.0,99305.0,8.613e-05]
[1733652823800,0.079683,99306.0,99305.0,8.613e-05]
[1733652824002,0.12863316,99306.0,99305.0,8.613e-05]
[1733652825001,0.12863316,99306.0,99305.0,0.00308613]
[1733652825595,0.13979501,99306.0,99305.0,0.00308613]
[1733652826098,0.17239501,99306.0,99305.0,0.00308613]
[1733652826402,0.17239501,99306.0,99305.0,0.00908613]
[1733652827705,0.12344485,99306.0,99305.0,0.00908613]
[1733652828001,0.17239541,99306.0,99305.0,0.00908613]
[1733652828794,0.1723967,99306.0,99305.0,0.00908613]
[1733652829301,0.8939967,99306.0,99305.0,0.00908613]
[1733652830601,0.89399695,99306.0,99305.0,0.00908613]
[1733652831611,0.17239695,99306.0,99305.0,0.00908613]
[1733652831802,0.89399695,99306.0,99305.0,0.00908613]
[1733652832902,0.89399695,99306.0,99305.0,0.01412187]
[1733652833701,0.17239697,99306.0,99305.0,0.01412187]
[1733652833996,0.98436688,99306.0,99305.0,0.01412187]
[1733652834208,0.98436688,99306.0,99305.0,0.00908613]
[1733652834403,0.98436688,99306.0,99305.0,0.01412183]
[1733652834711,0.94996688,99306.0,99305.0,0.02041617]
[1733652834910,0.94996688,99306.0,99305.0,0.0235634]
[1733652837410,0.799483,99306.0,99305.0,0.0235634]
[1733652837800,0.799483,99306.0,99305.0,0.00908613]
[1733652838011,0.799483,99306.0,99305.0,0.0235634]
[1733652838610,0.84843344,99306.0,99305.0,0.0235634]
[1733652840606,0.84843338,99306.0,99305.0,0.0235634]
[1733652840907,0.84843338,99306.0,99305.0,0.02356336]
[1733652842010,0.7216,99306.0,99305.0,0.02356336]
[1733652842219,0.09033367,99307.0,99306.0,0.045283]
[1733652842405,0.09033367,99307.0,99306.0,0.04897723]
[1733652842406,0.09033442,99307.0,99306.0,0.04897723]
[1733652842605,0.48123266,99311.0,99310.0,0.045282]
[1733652842606,0.001,99311.0,99310.0,0.045282]
[1733652842809,0.3608,99323.0,99310.0,0.05975923]
[1733652843115,0.12046656,99323.0,99321.0,0.04563586]
[1733652843306,0.21441016,99330.0,99321.0,0.04563586]
[1733652843307,0.3608,99322.0,99321.0,0.045276]
[1733652843508,0.3608,99322.0,99321.0,0.05974959]
[1733652844108,0.4812641,99322.0,99321.0,0.05974959]
[1733652844507,0.2047,99322.0,99321.0,0.05974959]
[1733652844708,0.3608,99332.0,99321.0,0.06074959]
[1733652844911,0.3608,99332.0,99331.0,0.045272]
[1733652845109,0.3608,99332.0,99331.0,0.05974559]
[1733652846813,0.3658,99332.0,99331.0,0.05974559]
[1733652847516,0.001,99344.0,99343.0,0.045267]
[1733652847715,0.12046132,99358.0,99343.0,0.42054059]
[1733652848012,0.00010646,99360.0,99357.0,0.04526]
[1733652848013,0.045259,99359.0,99357.0,0.04526]
[1733652848210,0.045259,99359.0,99358.0,0.00818072]
[1733652848608,0.045259,99359.0,99358.0,0.01447136]
[1733652849218,0.045259,99359.0,99358.0,0.00818072]
[1733652849912,0.045259,99359.0,99358.0,0.00918072]
[1733652849913,0.050259,99359.0,99358.0,0.00918072]
[1733652850611,0.050259,99359.0,99358.0,0.00917753]
[1733652851522,0.050259,99359.0,99358.0,0.02008594]
[1733652851818,0.050259,99359.0,99358.0,0.00917753]
[1733652855816,0.050259,99359.0,99358.0,0.0200152]
[1733652856526,0.050259,99359.0,99358.0,0.01498287]
[1733652857218,0.050259,99359.0,99358.0,0.0494052]
[1733652857423,0.050259,99359.0,99358.0,0.0041452]
[1733652857834,0.050259,99359.0,99358.0,0.0494052]
[1733652859324,0.005,99359.0,99358.0,0.0494052]
[1733652860421,0.002,99359.0,99358.0,0.0031452]
[1733652860729,0.002,99359.0,99358.0,0.0484052]
[1733652862329,0.002,99359.0,99358.0,0.05343745]
[1733652863427,0.002,99359.0,99358.0,0.05972777]
[1733652864531,0.002,99359.0,99358.0,0.04526]
[1733652864726,0.002,99359.0,99358.0,0.05972773]
[1733652868335,0.002,99359.0,99358.0,0.06008571]
[1733652869227,0.002,99359.0,99358.0,0.05972773]
[1733652869635,0.001,99359.0,99358.0,0.05972773]
[1733652872334,0.046259,99359.0,99358.0,0.05972773]
[1733652872541,0.09517727,99359.0,99358.0,0.05972773]
[1733652872838,0.046259,99359.0,99358.0,0.05972773]
[1733652873030,0.001,99359.0,99358.0,0.05972773]
[1733652873639,0.12143735,99359.0,99358.0,0.05972773]
[1733652874028,0.001,99359.0,99358.0,0.05972773]
[1733652874340,0.00010646,99360.0,99359.0,0.045259]
[1733652874533,0.00010646,99360.0,99359.0,0.05972673]
[1733652875241,0.15057189,99360.0,99359.0,0.05972673]
[1733652875635,0.00010646,99360.0,99359.0,0.05972673]
[1733652876337,0.05002473,99360.0,99359.0,0.05972673]
[1733652879738,0.18193145,99360.0,99359.0,0.05972673]
[1733652879936,0.23084972,99360.0,99359.0,0.05972673]
[1733652881036,0.00110646,99360.0,99359.0,0.05972673]
[1733652881237,0.34523116,99360.0,99359.0,0.05972673]
[1733652881942,0.34904515,99360.0,99359.0,0.05972673]
[1733652882129,0.39796342,99360.0,99359.0,0.05972673]
[1733652882739,0.52279,99366.0,99359.0,0.72052673]
[1733652882942,0.52179,99366.0,99365.0,0.045257]
[1733652883140,0.52179,99366.0,99365.0,0.05972473]
[1733652883348,0.52179,99366.0,99365.0,0.06915857]
[1733652883846,0.52179,99366.0,99365.0,0.05980152]
[1733652883847,0.52279,99366.0,99365.0,0.05980152]
[1733652884545,0.52479,99366.0,99365.0,0.05980152]
[1733652884744,0.70578829,99366.0,99365.0,0.05980152]
[1733652885139,0.417309,99366.0,99365.0,0.35980152]
[1733652885440,0.24114085,99382.0,99365.0,0.35980152]
[1733652885441,0.4262,99397.0,99365.0,0.64073967]
[1733652885636,0.0338,99396.0,99385.0,0.406047]
[1733652886138,0.079043,99396.0,99385.0,0.42050951]
[1733652886538,0.00212781,99386.0,99385.0,0.42050951]
[1733652887935,0.00012781,99386.0,99385.0,0.42050951]
[1733652888139,0.00212781,99386.0,99385.0,0.42050951]
[1733652888351,0.12045134,99396.0,99385.0,0.72050951]
[1733652888554,0.01053361,99418.0,99395.0,0.3608]
[1733652888845,0.0668,99436.0,99415.0,0.766834]
[1733652889041,0.0668,99436.0,99415.0,0.79700867]
[1733652889250,0.0668,99436.0,99415.0,0.79072062]
[1733652889442,0.0668,99436.0,99431.0,0.045226]
[1733652889749,0.0668,99436.0,99432.0,0.01445639]
[1733652890055,0.0668,99436.0,99434.0,0.045225]
[1733652890347,0.0328,99436.0,99435.0,0.01445639]
[1733652891349,0.0328,99436.0,99435.0,0.06003735]
[1733652891538,0.0328,99436.0,99435.0,0.06403735]
[1733652891941,0.0328,99436.0,99435.0,0.06368139]
[1733652892241,0.0328,99436.0,99435.0,0.06403769]
[1733652892750,0.3608,99444.0,99435.0,0.01881269]
[1733652892950,0.3608,99444.0,99442.0,0.0455773]
[1733652893145,0.3608,99444.0,99443.0,0.01445639]
[1733652893449,0.57725151,99444.0,99443.0,0.01445639]
[1733652893838,0.57725151,99444.0,99443.0,0.008171]
[1733652894243,0.57725151,99444.0,99443.0,0.00414269]
[1733652894840,0.3608,99444.0,99443.0,0.00917052]
[1733652895045,0.00012814,99446.0,99443.0,0.01017052]
[1733652895249,0.00012814,99446.0,99444.0,0.05339152]
[1733652895549,0.00012814,99446.0,99445.0,0.00817052]
[1733652895939,0.00012814,99446.0,99445.0,0.00816987]
[1733652896445,0.00012814,99446.0,99445.0,0.10872788]
[1733652896649,0.00012814,99446.0,99445.0,0.00816979]
[1733652897053,0.00012814,99446.0,99445.0,0.10872738]
[1733652897251,0.00012814,99446.0,99445.0,0.40055759]
[1733652897544,0.00012814,99446.0,99445.0,0.10872721]
[1733652898957,0.00012814,99446.0,99445.0,0.00816962]
[1733652899556,0.00012814,99446.0,99445.0,0.00816954]
[1733652900146,0.00012814,99446.0,99445.0,0.10872713]
[1733652900553,0.00012814,99446.0,99445.0,0.46952713]
[1733652901759,0.00012814,99446.0,99445.0,0.47581113]
[1733652902055,0.00012814,99446.0,99445.0,0.47581079]
[1733652902254,0.00012814,99446.0,99445.0,0.3752532]
[1733652902756,0.00012814,99446.0,99445.0,0.3772532]
[1733652902947,0.00012814,99446.0,99445.0,0.3741112]
[1733652903152,0.00012814,99446.0,99445.0,0.37725394]
[1733652903346,0.00012814,99446.0,99445.0,0.002]
[1733652903347,0.36092814,99446.0,99445.0,0.002]
[1733652903546,0.045223,99439.0,99437.0,0.406024]
[1733652903851,0.26167451,99439.0,99437.0,0.406024]
[1733652904652,0.26167451,99439.0,99437.0,0.3608]
[1733652904850,0.045226,99432.0,99431.0,0.045226]
[1733652905560,0.079826,99432.0,99431.0,0.045226]
[1733652906163,0.079826,99432.0,99431.0,0.05597895]
[1733652906363,0.079826,99432.0,99431.0,0.05797895]
[1733652906761,0.29627751,99432.0,99431.0,0.05797895]
[1733652906958,0.29627751,99432.0,99425.0,0.00150846]
[1733652906959,0.045228,99427.0,99425.0,0.00150846]
[1733652907159,0.29627751,99432.0,99421.0,0.40638628]
[1733652907160,0.045231,99422.0,99421.0,0.40638628]
[1733652907357,0.045231,99421.0,99420.0,0.00035528]
[1733652907554,0.045231,99421.0,99416.0,0.01080477]
[1733652907555,0.0315,99421.0,99416.0,0.00043282]
[1733652907754,0.26168451,99417.0,99416.0,0.00043282]
[1733652908055,0.26168451,99417.0,99416.0,7.754e-05]
[1733652908257,0.26168451,99417.0,99411.0,0.010966]
[1733652908258,0.045235,99412.0,99411.0,0.010966]
[1733652908562,0.045237,99408.0,99407.0,0.045237]
[1733652908760,0.26168851,99408.0,99407.0,0.045237]
[1733652909164,0.26168851,99408.0,99407.0,0.04535404]
[1733652909770,0.21645151,99408.0,99401.0,0.04524]
[1733652910068,0.3608,99413.0,99401.0,0.04524]
[1733652910069,0.3608,99402.0,99401.0,0.04524]
[1733652910259,0.57725151,99402.0,99401.0,0.04524]
[1733652910458,0.045243,99396.0,99394.0,0.045243]
[1733652910658,0.0339,99395.0,99394.0,0.045243]
[1733652910861,0.0339,99395.0,99394.0,0.04531654]
[1733652911362,0.0339,99395.0,99394.0,0.05160422]
[1733652911568,0.0339,99395.0,99394.0,0.05660422]
[1733652912265,0.079143,99395.0,99394.0,0.0566041]
[1733652912654,0.079143,99395.0,99394.0,0.0113611]
[1733652912858,0.045244,99392.0,99391.0,0.3608]
[1733652913070,0.045244,99392.0,99383.0,0.3608]
[1733652913071,0.21645151,99392.0,99383.0,0.3608]
[1733652913367,0.3608,99393.0,99384.0,0.00503036]
[1733652913574,0.3608,99393.0,99383.0,0.3608]
[1733652913575,0.21645151,99385.0,99383.0,0.3608]
[1733652913868,0.21645151,99384.0,99383.0,0.3608]
[1733652914066,0.21645151,99384.0,99383.0,0.36583064]
[1733652914264,0.21645151,99384.0,99383.0,0.36591548]
[1733652915067,0.21645151,99384.0,99383.0,0.01211548]
[1733652915369,0.21645151,99384.0,99383.0,0.01525985]
[1733652915557,0.21645151,99384.0,99373.0,0.18023225]
[1733652915757,0.26170251,99377.0,99373.0,0.05580147]
[1733652916072,0.045252,99376.0,99373.0,0.05580147]
[1733652916264,0.045252,99375.0,99373.0,0.045253]
[1733652916567,0.045252,99375.0,99374.0,0.00012688]
[1733652916865,0.26170351,99375.0,99374.0,0.00012688]
[1733652917064,0.23906305,99375.0,99374.0,0.00012688]
[1733652917364,0.59986305,99375.0,99374.0,0.00012688]
[1733652917572,0.60086305,99375.0,99374.0,0.00012688]
[1733652919374,0.57825151,99375.0,99374.0,0.05437888]
[1733652919575,0.57825151,99375.0,99374.0,0.06137888]
[1733652920867,0.001,99375.0,99374.0,0.06766825]
[1733652922171,0.001,99375.0,99374.0,0.06766745]
[1733652923173,0.045251,99378.0,99377.0,0.045251]
[1733652923373,0.045251,99378.0,99377.0,0.05153957]
[1733652923573,0.26170251,99378.0,99377.0,0.05153957]
[1733652924470,0.26270251,99378.0,99377.0,0.05853957]
[1733652925275,0.26270251,99378.0,99377.0,0.06753957]
[1733652925578,0.26270251,99378.0,99377.0,0.0725705]
[1733652926273,0.21745151,99378.0,99377.0,0.0725705]
[1733652927577,0.21745151,99378.0,99377.0,0.07571477]
[1733652930488,0.001,99378.0,99377.0,0.07607219]
[1733652930680,0.3608,99418.0,99398.0,0.045241]
[1733652930681,0.07774,99400.0,99398.0,0.045241]
[1733652930977,0.406041,99399.0,99398.0,0.01446377]
[1733652931182,0.406041,99399.0,99395.0,0.00035676]
[1733652931183,0.045242,99396.0,99395.0,0.00035676]
[1733652931384,0.045246,99388.0,99387.0,0.045246]
[1733652931576,0.62249751,99388.0,99387.0,0.045246]
[1733652932384,0.26169751,99388.0,99387.0,0.045246]
[1733652932585,0.21645151,99388.0,99387.0,0.054246]
[1733652933480,0.21645151,99388.0,99387.0,0.059246]
[1733652934683,0.26169751,99388.0,99387.0,0.059246]
[1733652935286,0.23905963,99388.0,99387.0,0.059246]
[1733652936088,0.23905963,99388.0,99387.0,0.23947825]
[1733652936883,0.23905963,99388.0,99387.0,0.059246]
[1733652938191,0.23905963,99388.0,99387.0,0.29955567]
[1733652939087,0.23905963,99388.0,99387.0,0.059246]
[1733652939390,0.23905963,99388.0,99387.0,0.06553431]
[1733652941193,0.23905963,99388.0,99387.0,0.07056497]
[1733652942490,0.23905963,99388.0,99387.0,0.07056501]
[1733652943087,0.23905963,99388.0,99387.0,0.07370917]
[1733652945893,0.23905963,99388.0,99387.0,0.06867848]
[1733652946192,0.23905963,99388.0,99387.0,0.0221749]
[1733652946391,0.23905963,99388.0,99387.0,0.02846329]
[1733652946793,0.23905963,99388.0,99387.0,0.02846352]
[1733652948790,0.045246,99387.0,99386.0,0.24089669]
[1733652948999,0.045246,99387.0,99386.0,0.01446352]
[1733652949000,0.23905963,99387.0,99386.0,0.01446352]
[1733652950194,0.35962681,99387.0,99386.0,0.02346352]
[1733652950593,0.59985963,99387.0,99386.0,0.02346352]
[1733652951488,0.59985963,99387.0,99386.0,0.02028849]
[1733652951697,0.59985963,99387.0,99386.0,0.014]
[1733652951992,0.59985963,99387.0,99385.0,0.14278212]
[1733652952201,0.045251,99378.0,99377.0,0.24089669]
[1733652952401,0.02261132,99378.0,99377.0,0.24089669]
[1733652952701,0.21642495,99378.0,99377.0,0.24089669]
[1733652952891,0.21642495,99378.0,99375.0,0.24089669]
[1733652952892,0.045252,99376.0,99375.0,0.24089669]
[1733652953296,0.045252,99376.0,99374.0,0.24102357]
[1733652953297,0.045252,99375.0,99374.0,0.24102357]
[1733652953599,0.30466563,99375.0,99374.0,0.24102357]
[1733652954196,0.30466563,99375.0,99374.0,0.00012688]
[1733652955908,0.30566563,99375.0,99374.0,0.00012688]
[1733652956803,0.30666563,99375.0,99374.0,0.0114163]
[1733652957798,0.30666563,99375.0,99374.0,0.01177588]
[1733652957999,0.42726569,99375.0,99374.0,0.0114163]
[1733652959101,0.42726569,99375.0,99374.0,0.01644796]
[1733652959708,0.42726569,99375.0,99374.0,0.01644812]
[1733652959897,0.30666563,99375.0,99374.0,0.01644812]
[1733652960706,0.32008052,99375.0,99374.0,0.01644812]
[1733652960902,0.32008052,99375.0,99374.0,0.01959308]
[1733652961501,0.32008052,99375.0,99374.0,0.0133035]
[1733652961902,0.32008052,99375.0,99374.0,0.00512688]
[1733652962313,0.32008052,99375.0,99374.0,0.01330378]
[1733652963010,0.32008052,99375.0,99374.0,7.8e-07]
[1733652964310,0.47063334,99375.0,99374.0,7.8e-07]
[1733652964614,0.32008052,99375.0,99374.0,7.8e-07]
[1733652965010,1.04168052,99375.0,99374.0,7.8e-07]
[1733652965612,1.19214485,99375.0,99374.0,7.8e-07]
[1733652966413,1.04168052,99375.0,99374.0,7.8e-07]
[1733652967304,0.68088052,99375.0,99374.0,0.04525378]
[1733652967508,0.60186563,99375.0,99374.0,0.04525378]
[1733652967806,0.60186563,99375.0,99374.0,0.05154355]
[1733652968613,0.002,99375.0,99374.0,0.05154355]
[1733652968807,0.0902562,99386.0,99374.0,0.05154355]
[1733652968808,0.1355022,99390.0,99374.0,0.05190306]
[1733652969000,0.19381363,99382.0,99380.0,0.00035951]
[1733652969200,0.19381363,99382.0,99381.0,0.41269928]
[1733652969399,0.3608,99393.0,99392.0,0.045245]
[1733652969400,0.406044,99393.0,99392.0,0.045245]
[1733652969618,0.406044,99393.0,99392.0,0.05153477]
[1733652969916,0.59985763,99393.0,99392.0,0.05153477]
[1733652970517,0.59985763,99393.0,99392.0,0.00628977]
[1733652971105,0.72020819,99393.0,99392.0,0.00628977]
[1733652971317,0.59985763,99393.0,99392.0,0.00628977]
[1733652971709,0.61412572,99393.0,99392.0,0.01428977]
[1733652972219,0.75132196,99393.0,99392.0,0.01428977]
[1733652972518,0.60085763,99393.0,99392.0,0.01728977]
[1733652973011,0.60085763,99393.0,99392.0,0.02232075]
[1733652973416,0.72120286,99393.0,99392.0,0.06756575]
[1733652973714,0.60085763,99393.0,99392.0,0.06756575]
[1733652974012,0.60085763,99393.0,99392.0,0.02232075]
[1733652974609,0.60085763,99393.0,99392.0,0.02268026]
[1733652975113,0.60085763,99393.0,99392.0,0.02582429]
[1733652975418,0.72120286,99393.0,99392.0,0.02546478]
[1733652975815,0.72120286,99393.0,99392.0,0.02546251]
[1733652976016,0.60085763,99393.0,99392.0,0.07070751]
[1733652977518,0.55561363,99393.0,99392.0,0.07070751]
[1733652978119,0.64585004,99393.0,99392.0,0.07070751]
[1733652978329,0.001,99393.0,99392.0,0.07070751]
[1733652978620,0.001,99393.0,99392.0,0.10230751]
[1733652979618,0.00012895,99398.0,99392.0,0.10230751]
[1733652979816,0.3608,99399.0,99392.0,0.10230751]
[1733652979817,0.09023641,99406.0,99396.0,0.00035872]
[1733652980118,0.09023641,99406.0,99405.0,0.045239]
[1733652980318,0.19381363,99405.0,99402.0,0.04524]
[1733652980527,0.19381363,99404.0,99403.0,0.05970065]
[1733652981628,0.19381363,99404.0,99403.0,0.06070065]
[1733652982009,0.19381363,99404.0,99403.0,0.06505924]
[1733652982324,0.19381363,99404.0,99403.0,0.05024]
[1733652982512,0.045237,99410.0,99409.0,0.045237]
[1733652982711,0.23905063,99410.0,99409.0,0.05969728]
[1733652984016,0.23905063,99410.0,99409.0,0.06069728]
[1733652984225,0.24005063,99410.0,99409.0,0.06069728]
[1733652984521,0.24005063,99410.0,99409.0,0.0544102]
[1733652985717,0.24005063,99410.0,99409.0,0.05441019]
[1733652986228,0.24005063,99410.0,99409.0,0.0544102]
[1733652987229,0.24005063,99410.0,99409.0,0.0091732]
[1733652988310,0.60085063,99410.0,99409.0,0.0091732]
[1733652988827,0.60085063,99410.0,99409.0,0.00414354]
[1733652989124,0.60085063,99410.0,99409.0,0.0041438]
[1733652989935,0.60085063,99410.0,99386.0,0.0456053]
[1733652989936,0.1934555,99389.0,99386.0,0.0456053]
[1733652990220,0.1934555,99381.0,99380.0,0.04957325]
[1733652990426,0.045247,99388.0,99380.0,0.09287751]
[1733652990625,0.1934555,99382.0,99381.0,0.0565682]
[1733652991218,0.001,99389.0,99381.0,0.0113182]
[1733652991523,0.001,99389.0,99388.0,0.045246]
[1733652991728,0.001,99389.0,99388.0,0.0565642]
[1733652991918,0.1934555,99389.0,99388.0,0.0565642]
[1733652992122,0.0682,99400.0,99388.0,0.0113182]
[1733652992123,0.0329,99400.0,99388.0,0.0113182]
[1733652992420,0.1934555,99396.0,99395.0,0.045243]
[1733652992625,0.1934555,99396.0,99395.0,0.0565612]
[1733652993215,0.2386985,99396.0,99395.0,0.0565612]
[1733652994732,0.2386985,99396.0,99395.0,0.0585612]
[1733652995022,0.2396985,99396.0,99395.0,0.0655612]
[1733652995817,0.2396985,99396.0,99395.0,0.01528789]
[1733652996122,0.2396985,99396.0,99395.0,0.01403023]
[1733652996422,0.2396985,99396.0,99395.0,0.02031806]
[1733652996625,0.36004373,99396.0,99395.0,0.02031806]
[1733652997416,0.2396985,99396.0,99395.0,0.02031806]
[1733652999225,0.046243,99396.0,99395.0,0.02031806]
[1733652999422,0.2396985,99396.0,99395.0,0.02031806]
[1733653001418,0.3601787,99396.0,99395.0,0.02031806]
[1733653001828,0.6004985,99396.0,99395.0,0.02346201]
[1733653002224,0.6004985,99396.0,99395.0,0.0171742]
[1733653003218,0.6334985,99396.0,99395.0,0.0171742]
[1733653003922,0.6823995,99396.0,99395.0,0.0171742]
[1733653004325,0.6823995,99396.0,99395.0,0.00314395]
[1733653004326,0.69612562,99396.0,99395.0,0.00314395]
[1733653004531,0.045251,99377.0,99373.0,0.04780006]
[1733653004727,0.13563662,99375.0,99374.0,0.00628906]
[1733653004933,0.045252,99375.0,99374.0,0.00628906]
[1733653006032,0.046252,99375.0,99374.0,0.01428906]
[1733653007528,0.13756827,99375.0,99374.0,0.01828906]
[1733653007835,0.047252,99375.0,99374.0,0.01828906]
[1733653009126,0.002,99375.0,99374.0,0.06354206]
[1733653013525,0.002,99375.0,99374.0,0.057253]
[1733653015438,0.002,99375.0,99374.0,0.06354173]
[1733653015640,0.002,99375.0,99374.0,0.418053]
[1733653018141,0.04525,99382.0,99381.0,0.04525]
[1733653018346,0.04525,99382.0,99381.0,0.05153836]
[1733653018641,0.04525,99382.0,99381.0,0.05971322]
[1733653019430,0.04625,99382.0,99381.0,0.06371322]
[1733653019641,0.04725,99382.0,99381.0,0.06571322]
[1733653020545,0.13756286,99382.0,99381.0,0.06571322]
[1733653020734,0.09231286,99382.0,99381.0,0.06571322]
[1733653020934,0.002,99382.0,99381.0,0.06571322]
[1733653021643,0.002,99382.0,99381.0,0.06571297]
[1733653025449,0.002,99382.0,99381.0,0.07836382]
[1733653027637,0.002,99382.0,99381.0,0.06704497]
[1733653027843,0.002,99382.0,99381.0,0.0783638]
[1733653031445,0.002,99382.0,99381.0,0.06390085]
[1733653031645,0.002,99382.0,99381.0,0.07836373]
[1733653034652,0.002,99382.0,99381.0,0.09821647]
[1733653034958,0.09035159,99387.0,99386.0,0.045247]
[1733653035155,0.09035159,99387.0,99386.0,0.05970988]
[1733653035355,0.13559859,99387.0,99386.0,0.05970988]
[1733653035654,0.045247,99387.0,99386.0,0.05970988]
[1733653035956,0.045247,99387.0,99386.0,0.01446288]
[1733653036148,0.16575983,99387.0,99386.0,0.01446288]
[1733653036355,0.046247,99387.0,99386.0,0.01746288]
[1733653037056,0.046247,99387.0,99386.0,0.06270988]
[1733653037251,0.046247,99387.0,99386.0,0.06670988]
[1733653037457,0.001,99387.0,99386.0,0.06670988]
[1733653041355,0.001,99387.0,99386.0,0.06671006]
[1733653046959,0.04990377,99387.0,99386.0,0.06671006]
[1733653047155,0.09515077,99387.0,99386.0,0.02146306]
[1733653047356,0.09515077,99387.0,99347.0,0.045265]
[1733653047357,0.09515077,99387.0,99369.0,0.30120973]
[1733653047554,0.045255,99370.0,99369.0,0.045255]
[1733653047951,0.15081178,99372.0,99371.0,0.045254]
[1733653048665,0.084453,99373.0,99372.0,0.045254]
[1733653049664,0.0392,99373.0,99372.0,0.045254]
[1733653050364,0.12057283,99374.0,99372.0,0.047254]
[1733653050563,0.12056233,99374.0,99373.0,0.045253]
[1733653050869,0.19606178,99381.0,99372.0,0.047254]
[1733653050870,0.12056233,99378.0,99372.0,0.047254]
[1733653051166,0.12056233,99378.0,99377.0,0.045251]
[1733653052572,0.12156233,99378.0,99377.0,0.045251]
[1733653053265,0.16681333,99378.0,99377.0,0.045251]
[1733653053564,0.046251,99378.0,99377.0,0.045251]
[1733653053775,0.047251,99378.0,99377.0,0.047251]
[1733653054462,0.13766369,99378.0,99377.0,0.047251]
[1733653055169,0.09241269,99378.0,99377.0,0.047251]
[1733653055358,0.09241269,99378.0,99377.0,0.05353976]
[1733653056466,0.09241269,99378.0,99377.0,0.06618483]
[1733653057070,0.002,99378.0,99377.0,0.06618483]
[1733653057469,0.002,99378.0,99377.0,0.0712158]
[1733653058879,0.047251,99378.0,99377.0,0.07121584]
[1733653059375,0.047251,99378.0,99377.0,0.07436023]
[1733653062170,0.047251,99378.0,99377.0,0.07436035]
[1733653068075,0.047251,99378.0,99377.0,0.01646428]
[1733653068578,0.084851,99378.0,99377.0,0.01646428]
[1733653076081,0.084851,99378.0,99377.0,0.0164654]
[1733653076478,0.1337639,99378.0,99377.0,0.0164654]
[1733653076981,0.084851,99378.0,99377.0,0.0164654]
[1733653077383,0.25394456,99378.0,99377.0,0.0164654]
[1733653077893,0.25394456,99378.0,99366.0,0.0003601]
[1733653077894,0.0885129,99378.0,99366.0,0.0003601]
[1733653078081,0.045256,99366.0,99365.0,0.00012873]
[1733653078280,0.406056,99366.0,99365.0,0.00012873]
[1733653078484,0.63253076,99366.0,99365.0,0.00012873]
[1733653078890,0.045259,99361.0,99359.0,0.00035976]
[1733653079191,0.045259,99361.0,99358.0,0.00035976]
[1733653079383,0.04526,99358.0,99357.0,0.00035976]
[1733653079580,0.3608,99358.0,99356.0,0.00035976]
[1733653079780,0.12049265,99357.0,99355.0,0.00035976]
[1733653079995,0.045261,99356.0,99355.0,0.00035976]
[1733653081185,0.045261,99356.0,99355.0,0.00135976]
[1733653081186,0.046261,99356.0,99355.0,0.00135976]
[1733653081582,0.046261,99356.0,99355.0,0.001]
[1733653081982,0.047261,99356.0,99355.0,0.001]
[1733653085086,0.408061,99356.0,99355.0,0.001]
[1733653085398,0.49833073,99356.0,99355.0,0.001]
[1733653085586,0.408061,99356.0,99355.0,0.001]
[1733653085893,0.408061,99356.0,99355.0,0.00729066]
[1733653086097,0.047261,99356.0,99355.0,0.00729066]
[1733653086299,0.408061,99356.0,99355.0,0.00729066]
[1733653086886,0.3628,99356.0,99355.0,0.05255166]
[1733653087095,0.002,99356.0,99355.0,0.05255166]
[1733653087986,0.002,99356.0,99355.0,0.05758351]
[1733653088384,0.04526,99358.0,99357.0,0.04526]
[1733653088583,0.04526,99358.0,99357.0,0.05658164]
[1733653088781,0.045258,99363.0,99362.0,0.045257]
[1733653088985,0.045258,99363.0,99362.0,0.05657864]
[1733653089795,0.045256,99367.0,99362.0,0.55237352]
[1733653090091,0.045256,99367.0,99366.0,0.045256]
[1733653090398,0.045256,99367.0,99366.0,0.05972234]
[1733653090790,0.13551475,99373.0,99372.0,0.045253]
[1733653090985,0.09026175,99376.0,99372.0,0.01446634]
[1733653091188,0.09026175,99376.0,99375.0,0.045252]
[1733653091497,0.13551275,99377.0,99376.0,0.045252]
[1733653091701,0.045251,99377.0,99376.0,0.09851834]
[1733653091990,0.045251,99377.0,99376.0,0.09851686]
[1733653092185,0.045251,99377.0,99376.0,0.09887569]
[1733653092382,0.045251,99377.0,99376.0,0.09887516]
[1733653092585,0.045251,99377.0,99376.0,0.0985162]